[Event "Titled Tuesday Blitz July 11 Late 2023"]
[White "Piesik, Piotr"]
[Black "Rangel, Daniel"]
[WhiteFideId "1136194"]
[BlackFideId "2124475"]
[WhiteElo "2604"]
[BlackElo "2496"]
[Result "1/2-1/2"]
[Round "6"]
[TimeControl "180+2"]
[Date "2023.07.11"]
[WhiteClock "0:00:08"]
[BlackClock "0:00:03"]
[Board "62"]

1. Nf3 {[%clk 0:02:56]}  Nf6 {[%clk 0:02:59]} 2. g3 {[%clk 0:02:57]}  e6 {[%clk 0:02:58]} 3. Bg2 {[%clk 0:02:57]}  d5 {[%clk 0:02:58]} 4. O-O {[%clk 0:02:57]}  Be7 {[%clk 0:02:59]} 5. d3 {[%clk 0:02:58]}  O-O {[%clk 0:02:59]} 6. Nbd2 {[%clk 0:02:59]}  b6 {[%clk 0:02:58]} 7. e4 {[%clk 0:02:59]}  dxe4 {[%clk 0:02:58]} 8. dxe4 {[%clk 0:03:00]}  Bb7 {[%clk 0:02:58]} 9. Qe2 {[%clk 0:03:00]}  c5 {[%clk 0:02:58]} 10. Rd1 {[%clk 0:02:59]}  Qc7 {[%clk 0:02:57]} 11. c3 {[%clk 0:02:55]}  Nc6 {[%clk 0:02:53]} 12. Nf1 {[%clk 0:02:54]}  Rad8 {[%clk 0:02:54]} 13. Bf4 {[%clk 0:02:54]}  Qc8 {[%clk 0:02:42]} 14. Ne5 {[%clk 0:02:54]}  Nxe5 {[%clk 0:02:39]} 15. Bxe5 {[%clk 0:02:55]}  Rxd1 {[%clk 0:02:39]} 16. Rxd1 {[%clk 0:02:54]}  Rd8 {[%clk 0:02:39]} 17. f3 {[%clk 0:02:44]}  Rxd1 {[%clk 0:02:30]} 18. Qxd1 {[%clk 0:02:43]}  Qd7 {[%clk 0:02:30]} 19. Qxd7 {[%clk 0:02:39]}  Nxd7 {[%clk 0:02:31]} 20. Bc7 {[%clk 0:02:38]}  Kf8 {[%clk 0:02:12]} 21. Ne3 {[%clk 0:02:37]}  Ke8 {[%clk 0:02:11]} 22. Nc4 {[%clk 0:02:35]}  Ba6 {[%clk 0:01:54]} 23. Bf1 {[%clk 0:02:25]}  Bxc4 {[%clk 0:01:31]} 24. Bxc4 {[%clk 0:02:26]}  h6 {[%clk 0:01:22]} 25. Bb5 {[%clk 0:02:22]}  Bd8 {[%clk 0:01:18]} 26. Bb8 {[%clk 0:02:06]}  Ke7 {[%clk 0:00:58]} 27. Bxa7 {[%clk 0:01:58]}  Bc7 {[%clk 0:00:49]} 28. a4 {[%clk 0:01:45]}  Kd6 {[%clk 0:00:40]} 29. Kf2 {[%clk 0:01:38]}  Ne5 {[%clk 0:00:32]} 30. f4 {[%clk 0:01:18]}  Nc6 {[%clk 0:00:29]} 31. e5+ {[%clk 0:01:18]}  Kd7 {[%clk 0:00:27]} 32. a5 {[%clk 0:01:16]}  bxa5 {[%clk 0:00:18]} 33. Bxc5 {[%clk 0:01:16]}  Bd8 {[%clk 0:00:17]} 34. Bd6 {[%clk 0:01:15]}  Bb6+ {[%clk 0:00:16]} 35. Ke2 {[%clk 0:01:12]}  h5 {[%clk 0:00:15]} 36. h3 {[%clk 0:01:11]}  g6 {[%clk 0:00:15]} 37. g4 {[%clk 0:01:09]}  hxg4 {[%clk 0:00:16]} 38. hxg4 {[%clk 0:01:09]}  Ba7 {[%clk 0:00:14]} 39. Kd3 {[%clk 0:01:07]}  Bb6 {[%clk 0:00:13]} 40. Ke4 {[%clk 0:00:59]}  Bf2 {[%clk 0:00:09]} 41. f5 {[%clk 0:00:59]}  gxf5+ {[%clk 0:00:08]} 42. gxf5 {[%clk 0:01:00]}  Bb6 {[%clk 0:00:04]} 43. f6 {[%clk 0:01:00]}  Bf2 {[%clk 0:00:02]} 44. Kd3 {[%clk 0:00:55]}  Bb6 {[%clk 0:00:02]} 45. Kc4 {[%clk 0:00:55]}  Be3 {[%clk 0:00:02]} 46. Ba4 {[%clk 0:00:50]}  Bf4 {[%clk 0:00:02]} 47. Kd3 {[%clk 0:00:43]}  Bg3 {[%clk 0:00:02]} 48. Ke4 {[%clk 0:00:39]}  Bf2 {[%clk 0:00:01]} 49. b4 {[%clk 0:00:30]}  Bb6 {[%clk 0:00:02]} 50. bxa5 {[%clk 0:00:24]}  Bxa5 {[%clk 0:00:03]} 51. c4 {[%clk 0:00:22]}  Bb6 {[%clk 0:00:04]} 52. Kd3 {[%clk 0:00:18]}  Bf2 {[%clk 0:00:03]} 53. Kc3 {[%clk 0:00:17]}  Bb6 {[%clk 0:00:03]} 54. Kb3 {[%clk 0:00:17]}  Ba5 {[%clk 0:00:03]} 55. Bb5 {[%clk 0:00:17]}  Bb6 {[%clk 0:00:04]} 56. Ka4 {[%clk 0:00:17]}  Bd8 {[%clk 0:00:04]} 57. Ka3 {[%clk 0:00:15]}  Ba5 {[%clk 0:00:04]} 58. Kb3 {[%clk 0:00:13]}  Bb6 {[%clk 0:00:04]} 59. Kc3 {[%clk 0:00:13]}  Be3 {[%clk 0:00:03]} 60. Kd3 {[%clk 0:00:14]}  Bc1 {[%clk 0:00:02]} 61. Ke4 {[%clk 0:00:12]}  Bg5 {[%clk 0:00:02]} 62. Bc5 {[%clk 0:00:12]}  Bc1 {[%clk 0:00:03]} 63. Be3 {[%clk 0:00:12]}  Ba3 {[%clk 0:00:03]} 64. Bf4 {[%clk 0:00:10]}  Kc7 {[%clk 0:00:03]} 65. Kf3 {[%clk 0:00:09]}  Bb2 {[%clk 0:00:03]} 66. Bxc6 {[%clk 0:00:09]}  Kxc6 {[%clk 0:00:03]} 67. Ke4 {[%clk 0:00:08]}  Kc5 {[%clk 0:00:03]} 68. Kd3 {[%clk 0:00:09]}  Kc6 {[%clk 0:00:03]} 69. Bg3 {[%clk 0:00:08]}  Ba1 {[%clk 0:00:03]} 70. Kc2 {[%clk 0:00:08]}  Bd4 {[%clk 0:00:03]} 71. Kb3 {[%clk 0:00:08]}  Kc5 {[%clk 0:00:03]} 72. Bf4 {[%clk 0:00:08]}  Ba1 {[%clk 0:00:02]} 73. Be3+ {[%clk 0:00:08]}  Kc6 {[%clk 0:00:02]} 74. Bf4 {[%clk 0:00:08]}  Kc5 {[%clk 0:00:02]} 75. Ka2 {[%clk 0:00:07]}  Bd4 {[%clk 0:00:03]} 76. Kb3 {[%clk 0:00:08]}  Ba1 {[%clk 0:00:03]} 1/2-1/2


[Site "https://www.chess.com"]

[Event "Titled Tuesday Blitz July 11 Late 2023"]
[White "Ganiev, Roman"]
[Black "Yurasova, Daria"]
[WhiteFideId "4131452"]
[BlackFideId "34146919"]
[WhiteElo "2602"]
[BlackElo "2492"]
[Result "1-0"]
[Round "6"]
[TimeControl "180+2"]
[Date "2023.07.11"]
[WhiteClock "0:00:27"]
[BlackClock "0:00:00"]
[Board "63"]

1. e4 {[%clk 0:03:00]}  e5 {[%clk 0:02:57]} 2. d4 {[%clk 0:03:00]}  exd4 {[%clk 0:02:56]} 3. Qxd4 {[%clk 0:03:01]}  Nc6 {[%clk 0:02:56]} 4. Qe3 {[%clk 0:02:59]}  Nf6 {[%clk 0:02:56]} 5. Nc3 {[%clk 0:03:00]}  Bb4 {[%clk 0:02:56]} 6. Bd2 {[%clk 0:02:59]}  d6 {[%clk 0:02:56]} 7. O-O-O {[%clk 0:02:53]}  Be6 {[%clk 0:02:56]} 8. f3 {[%clk 0:02:53]}  Qd7 {[%clk 0:02:56]} 9. a3 {[%clk 0:02:53]}  Ba5 {[%clk 0:02:56]} 10. Bb5 {[%clk 0:02:50]}  Bb6 {[%clk 0:02:55]} 11. Qe1 {[%clk 0:02:50]}  O-O-O {[%clk 0:02:54]} 12. Be3 {[%clk 0:02:51]}  Qe7 {[%clk 0:02:46]} 13. Nh3 {[%clk 0:02:24]}  Ne5 {[%clk 0:02:40]} 14. Nf4 {[%clk 0:02:20]}  Bc4 {[%clk 0:02:35]} 15. Bxb6 {[%clk 0:02:17]}  axb6 {[%clk 0:02:35]} 16. Bxc4 {[%clk 0:02:14]}  Nxc4 {[%clk 0:02:35]} 17. Ncd5 {[%clk 0:02:15]}  Nxd5 {[%clk 0:02:29]} 18. Nxd5 {[%clk 0:02:15]}  Qe5 {[%clk 0:02:28]} 19. Qb4 {[%clk 0:02:15]}  Na5 {[%clk 0:02:26]} 20. Rd3 {[%clk 0:02:10]}  Nc6 {[%clk 0:02:24]} 21. Qa4 {[%clk 0:02:08]}  Kb8 {[%clk 0:02:24]} 22. Kb1 {[%clk 0:02:06]}  Rhe8 {[%clk 0:02:23]} 23. Nc3 {[%clk 0:02:01]}  Qc5 {[%clk 0:02:12]} 24. Rhd1 {[%clk 0:01:55]}  f5 {[%clk 0:01:46]} 25. Nb5 {[%clk 0:01:22]}  Re5 {[%clk 0:01:14]} 26. Rd5 {[%clk 0:01:21]}  Rxd5 {[%clk 0:01:14]} 27. exd5 {[%clk 0:01:22]}  Na5 {[%clk 0:01:03]} 28. Nc3 {[%clk 0:00:54]}  Qf2 {[%clk 0:00:14]} 29. Qd4 {[%clk 0:00:36]}  Qxd4 {[%clk 0:00:14]} 30. Rxd4 {[%clk 0:00:36]}  c5 {[%clk 0:00:10]} 31. Rh4 {[%clk 0:00:32]}  g5 {[%clk 0:00:05]} 32. Rxh7 {[%clk 0:00:31]}  Re8 {[%clk 0:00:06]} 33. b3 {[%clk 0:00:29]}  Re4 {[%clk 0:00:00]} 34. fxe4 {[%clk 0:00:27]} 1-0


[Site "https://www.chess.com"]

[Event "Titled Tuesday Blitz July 11 Late 2023"]
[White "Janturin, Artur"]
[Black "Alboredo, Julia"]
[WhiteFideId "4130022"]
[BlackFideId "2124807"]
[WhiteElo "2599"]
[BlackElo "2484"]
[Result "1-0"]
[Round "6"]
[TimeControl "180+2"]
[Date "2023.07.11"]
[WhiteClock "0:00:08"]
[BlackClock "0:00:08"]
[Board "64"]

1. b3 {[%clk 0:03:00]}  Nf6 {[%clk 0:02:56]} 2. Bb2 {[%clk 0:03:01]}  g6 {[%clk 0:02:56]} 3. Bxf6 {[%clk 0:03:01]}  exf6 {[%clk 0:02:56]} 4. c4 {[%clk 0:03:01]}  f5 {[%clk 0:02:57]} 5. Nc3 {[%clk 0:03:02]}  Bg7 {[%clk 0:02:58]} 6. g3 {[%clk 0:03:02]}  d6 {[%clk 0:02:58]} 7. Bg2 {[%clk 0:03:02]}  O-O {[%clk 0:02:59]} 8. e3 {[%clk 0:03:03]}  Nd7 {[%clk 0:02:57]} 9. Nge2 {[%clk 0:03:03]}  Nf6 {[%clk 0:02:57]} 10. Qc2 {[%clk 0:03:00]}  h5 {[%clk 0:02:57]} 11. h4 {[%clk 0:03:00]}  Re8 {[%clk 0:02:55]} 12. O-O {[%clk 0:02:57]}  c6 {[%clk 0:02:40]} 13. b4 {[%clk 0:02:55]}  a6 {[%clk 0:02:35]} 14. a4 {[%clk 0:02:55]}  Be6 {[%clk 0:02:26]} 15. d3 {[%clk 0:02:47]}  Ng4 {[%clk 0:02:25]} 16. b5 {[%clk 0:02:36]}  axb5 {[%clk 0:02:23]} 17. axb5 {[%clk 0:02:37]}  Qd7 {[%clk 0:02:05]} 18. Ra4 {[%clk 0:01:48]}  Rxa4 {[%clk 0:01:43]} 19. Qxa4 {[%clk 0:01:45]}  Rc8 {[%clk 0:01:21]} 20. Rb1 {[%clk 0:01:29]}  Ne5 {[%clk 0:01:19]} 21. Nf4 {[%clk 0:01:18]}  Nxd3 {[%clk 0:01:10]} 22. Nce2 {[%clk 0:00:45]}  Nc5 {[%clk 0:01:03]} 23. Qb4 {[%clk 0:00:35]}  Ra8 {[%clk 0:00:50]} 24. Nd4 {[%clk 0:00:25]}  Ra4 {[%clk 0:00:29]} 25. Qd2 {[%clk 0:00:25]}  Bxd4 {[%clk 0:00:19]} 26. exd4 {[%clk 0:00:24]}  Ne4 {[%clk 0:00:19]} 27. Bxe4 {[%clk 0:00:20]}  fxe4 {[%clk 0:00:20]} 28. bxc6 {[%clk 0:00:20]}  bxc6 {[%clk 0:00:18]} 29. Rb8+ {[%clk 0:00:17]}  Kh7 {[%clk 0:00:15]} 30. d5 {[%clk 0:00:14]}  Qa7 {[%clk 0:00:11]} 31. Qb2 {[%clk 0:00:11]}  f6 {[%clk 0:00:10]} 32. Nxe6 {[%clk 0:00:10]}  Ra1+ {[%clk 0:00:07]} 33. Kg2 {[%clk 0:00:10]}  Ra2 {[%clk 0:00:08]} 34. Rb7+ {[%clk 0:00:10]}  Kh6 {[%clk 0:00:09]} 35. Qc1+ {[%clk 0:00:08]}  g5 {[%clk 0:00:08]} 36. Rxa7 {[%clk 0:00:08]}  Rxa7 {[%clk 0:00:08]} 37. dxc6 {[%clk 0:00:08]} 1-0


[Site "https://www.chess.com"]

[Event "Titled Tuesday Blitz July 11 Late 2023"]
[White "Zavgorodniy, Sergiy"]
[Black "Matt, Fabian"]
[WhiteFideId "14110148"]
[BlackFideId "1623303"]
[WhiteElo "2591"]
[BlackElo "2458"]
[Result "1-0"]
[Round "6"]
[TimeControl "180+2"]
[Date "2023.07.11"]
[WhiteClock "0:00:18"]
[BlackClock "0:00:01"]
[Board "66"]

1. d4 {[%clk 0:02:59]}  Nf6 {[%clk 0:02:59]} 2. c4 {[%clk 0:02:59]}  e6 {[%clk 0:02:59]} 3. Nf3 {[%clk 0:02:58]}  d5 {[%clk 0:03:00]} 4. e3 {[%clk 0:02:57]}  Be7 {[%clk 0:02:57]} 5. Nbd2 {[%clk 0:02:57]}  O-O {[%clk 0:02:56]} 6. Bd3 {[%clk 0:02:57]}  c5 {[%clk 0:02:51]} 7. b3 {[%clk 0:02:55]}  cxd4 {[%clk 0:02:41]} 8. exd4 {[%clk 0:02:55]}  Nc6 {[%clk 0:02:30]} 9. Bb2 {[%clk 0:02:55]}  b6 {[%clk 0:02:30]} 10. O-O {[%clk 0:02:55]}  Bb7 {[%clk 0:02:31]} 11. Qe2 {[%clk 0:02:55]}  Rc8 {[%clk 0:02:27]} 12. Rac1 {[%clk 0:02:55]}  Qc7 {[%clk 0:02:15]} 13. Rfd1 {[%clk 0:02:43]}  Qb8 {[%clk 0:02:10]} 14. Ne5 {[%clk 0:02:37]}  Rfd8 {[%clk 0:02:04]} 15. Ndf3 {[%clk 0:02:37]}  Bf8 {[%clk 0:01:22]} 16. Nxf7 {[%clk 0:02:35]}  Re8 {[%clk 0:01:12]} 17. N7e5 {[%clk 0:02:26]}  dxc4 {[%clk 0:01:05]} 18. bxc4 {[%clk 0:02:24]}  Bd6 {[%clk 0:01:04]} 19. Bb1 {[%clk 0:02:14]}  Ne7 {[%clk 0:01:02]} 20. Re1 {[%clk 0:02:05]}  Nf5 {[%clk 0:01:00]} 21. g4 {[%clk 0:01:51]}  Bxe5 {[%clk 0:00:53]} 22. Nxe5 {[%clk 0:01:44]}  Nh4 {[%clk 0:00:51]} 23. g5 {[%clk 0:01:38]}  Nd7 {[%clk 0:00:32]} 24. Qh5 {[%clk 0:01:16]}  Nxe5 {[%clk 0:00:24]} 25. Qxh7+ {[%clk 0:01:12]}  Kf8 {[%clk 0:00:24]} 26. Qh8+ {[%clk 0:00:36]}  Ke7 {[%clk 0:00:24]} 27. Qxg7+ {[%clk 0:00:36]}  Nf7 {[%clk 0:00:24]} 28. Ba3+ {[%clk 0:00:34]}  Rc5 {[%clk 0:00:23]} 29. dxc5 {[%clk 0:00:24]}  Nf3+ {[%clk 0:00:12]} 30. Kf1 {[%clk 0:00:24]}  Nxh2+ {[%clk 0:00:10]} 31. Ke2 {[%clk 0:00:23]}  Bf3+ {[%clk 0:00:10]} 32. Kd3 {[%clk 0:00:20]}  Qd8+ {[%clk 0:00:06]} 33. Kc3 {[%clk 0:00:19]}  Rf8 {[%clk 0:00:02]} 34. cxb6+ {[%clk 0:00:18]}  Ke8 {[%clk 0:00:03]} 35. Qxf8+ {[%clk 0:00:18]}  Kd7 {[%clk 0:00:01]} 36. Rcd1+ {[%clk 0:00:18]} 1-0


[Site "https://www.chess.com"]

[Event "Titled Tuesday Blitz July 11 Late 2023"]
[White "Swayams, Mishra"]
[Black "Romero Ruscalleda, Josep"]
[WhiteFideId "5028183"]
[BlackFideId "2231859"]
[WhiteElo "2591"]
[BlackElo "2458"]
[Result "1-0"]
[Round "6"]
[TimeControl "180+2"]
[Date "2023.07.11"]
[WhiteClock "0:01:27"]
[BlackClock "0:01:03"]
[Board "67"]

1. d4 {[%clk 0:02:59]}  g6 {[%clk 0:02:59]} 2. c4 {[%clk 0:02:58]}  Bg7 {[%clk 0:03:00]} 3. Nf3 {[%clk 0:02:57]}  d6 {[%clk 0:03:00]} 4. e4 {[%clk 0:02:57]}  Nc6 {[%clk 0:03:00]} 5. Be3 {[%clk 0:02:57]}  Bg4 {[%clk 0:02:59]} 6. Be2 {[%clk 0:02:51]}  e5 {[%clk 0:02:57]} 7. d5 {[%clk 0:02:50]}  Nce7 {[%clk 0:02:55]} 8. Nc3 {[%clk 0:02:46]}  Bxf3 {[%clk 0:02:53]} 9. Bxf3 {[%clk 0:02:45]}  f5 {[%clk 0:02:53]} 10. Qa4+ {[%clk 0:02:36]}  Qd7 {[%clk 0:02:44]} 11. Qxd7+ {[%clk 0:02:35]}  Kxd7 {[%clk 0:02:44]} 12. g3 {[%clk 0:02:13]}  Bh6 {[%clk 0:02:37]} 13. Ke2 {[%clk 0:02:06]}  Bxe3 {[%clk 0:02:36]} 14. Kxe3 {[%clk 0:02:07]}  Nf6 {[%clk 0:02:34]} 15. Rae1 {[%clk 0:01:57]}  Rhf8 {[%clk 0:02:32]} 16. Rhf1 {[%clk 0:01:56]}  fxe4 {[%clk 0:02:14]} 17. Nxe4 {[%clk 0:01:45]}  Nf5+ {[%clk 0:02:14]} 18. Kd3 {[%clk 0:01:45]}  Nxe4 {[%clk 0:02:14]} 19. Bxe4 {[%clk 0:01:46]}  Nd4 {[%clk 0:02:14]} 20. f4 {[%clk 0:01:45]}  c5 {[%clk 0:02:07]} 21. dxc6+ {[%clk 0:01:45]}  Nxc6 {[%clk 0:02:07]} 22. Bxc6+ {[%clk 0:01:41]}  bxc6 {[%clk 0:02:05]} 23. fxe5 {[%clk 0:01:42]}  Rxf1 {[%clk 0:02:05]} 24. Rxf1 {[%clk 0:01:43]}  dxe5 {[%clk 0:02:05]} 25. Rf7+ {[%clk 0:01:40]}  Ke6 {[%clk 0:02:03]} 26. Rxh7 {[%clk 0:01:40]}  Rd8+ {[%clk 0:02:02]} 27. Ke3 {[%clk 0:01:39]}  a5 {[%clk 0:01:48]} 28. Rc7 {[%clk 0:01:38]}  Kd6 {[%clk 0:01:46]} 29. Rg7 {[%clk 0:01:38]}  Kc5 {[%clk 0:01:45]} 30. Rxg6 {[%clk 0:01:38]}  Rb8 {[%clk 0:01:44]} 31. b3 {[%clk 0:01:34]}  a4 {[%clk 0:01:44]} 32. h4 {[%clk 0:01:34]}  axb3 {[%clk 0:01:44]} 33. axb3 {[%clk 0:01:34]}  Rxb3+ {[%clk 0:01:44]} 34. Ke4 {[%clk 0:01:35]}  Rc3 {[%clk 0:01:35]} 35. Kxe5 {[%clk 0:01:31]}  Rxc4 {[%clk 0:01:33]} 36. h5 {[%clk 0:01:31]}  Rc1 {[%clk 0:01:31]} 37. h6 {[%clk 0:01:31]}  Re1+ {[%clk 0:01:31]} 38. Kf5 {[%clk 0:01:30]}  Rh1 {[%clk 0:01:26]} 39. g4 {[%clk 0:01:29]}  Kd5 {[%clk 0:01:26]} 40. g5 {[%clk 0:01:29]}  c5 {[%clk 0:01:26]} 41. Rg8 {[%clk 0:01:29]}  c4 {[%clk 0:01:26]} 42. Rc8 {[%clk 0:01:28]}  Rh3 {[%clk 0:01:10]} 43. Kg6 {[%clk 0:01:27]}  c3 {[%clk 0:01:08]} 44. h7 {[%clk 0:01:26]}  Kd4 {[%clk 0:01:06]} 45. h8=Q+ {[%clk 0:01:26]}  Rxh8 {[%clk 0:01:05]} 46. Rxh8 {[%clk 0:01:27]}  c2 {[%clk 0:01:03]} 47. Rc8 {[%clk 0:01:27]} 1-0


[Site "https://www.chess.com"]

[Event "Titled Tuesday Blitz July 11 Late 2023"]
[White "Manukyan, Artyom"]
[Black "Bueno, Alfeu Junior Varela"]
[WhiteFideId "13305786"]
[BlackFideId "2108879"]
[WhiteElo "2575"]
[BlackElo "2450"]
[Result "1-0"]
[Round "6"]
[TimeControl "180+2"]
[Date "2023.07.11"]
[WhiteClock "0:02:16"]
[BlackClock "0:00:11"]
[Board "68"]

1. e4 {[%clk 0:03:00]}  e6 {[%clk 0:02:54]} 2. d4 {[%clk 0:03:00]}  d5 {[%clk 0:02:53]} 3. Bd3 {[%clk 0:03:01]}  Nf6 {[%clk 0:02:51]} 4. e5 {[%clk 0:03:01]}  Nfd7 {[%clk 0:02:51]} 5. c3 {[%clk 0:03:02]}  c5 {[%clk 0:02:52]} 6. Ne2 {[%clk 0:03:03]}  Nc6 {[%clk 0:02:52]} 7. a3 {[%clk 0:03:03]}  Qb6 {[%clk 0:02:34]} 8. b4 {[%clk 0:03:03]}  cxd4 {[%clk 0:02:33]} 9. cxd4 {[%clk 0:03:04]}  Nxd4 {[%clk 0:02:31]} 10. Be3 {[%clk 0:03:03]}  Nxe5 {[%clk 0:02:28]} 11. Bxd4 {[%clk 0:03:02]}  Nxd3+ {[%clk 0:02:28]} 12. Qxd3 {[%clk 0:03:03]}  Qd8 {[%clk 0:02:23]} 13. O-O {[%clk 0:03:02]}  Bd7 {[%clk 0:02:16]} 14. Nbc3 {[%clk 0:03:01]}  Qh4 {[%clk 0:02:10]} 15. Be5 {[%clk 0:02:51]}  Be7 {[%clk 0:02:00]} 16. Nd4 {[%clk 0:02:43]}  O-O {[%clk 0:01:48]} 17. Rae1 {[%clk 0:02:41]}  Rac8 {[%clk 0:01:44]} 18. Re3 {[%clk 0:02:38]}  Bd8 {[%clk 0:01:13]} 19. Rh3 {[%clk 0:02:35]}  Rxc3 {[%clk 0:01:11]} 20. Qxc3 {[%clk 0:02:31]}  Qe4 {[%clk 0:01:10]} 21. Qd3 {[%clk 0:02:26]}  f6 {[%clk 0:01:01]} 22. Qxe4 {[%clk 0:02:22]}  dxe4 {[%clk 0:01:00]} 23. Bd6 {[%clk 0:02:23]}  e5 {[%clk 0:00:47]} 24. Bxf8 {[%clk 0:02:22]}  exd4 {[%clk 0:00:47]} 25. Bc5 {[%clk 0:02:21]}  Bxh3 {[%clk 0:00:45]} 26. gxh3 {[%clk 0:02:21]}  d3 {[%clk 0:00:38]} 27. Be3 {[%clk 0:02:21]}  Kf7 {[%clk 0:00:32]} 28. f3 {[%clk 0:02:20]}  exf3 {[%clk 0:00:27]} 29. Rxf3 {[%clk 0:02:20]}  Ke6 {[%clk 0:00:27]} 30. Kf2 {[%clk 0:02:19]}  Kd5 {[%clk 0:00:25]} 31. Rf4 {[%clk 0:02:19]}  Bb6 {[%clk 0:00:15]} 32. Bxb6 {[%clk 0:02:18]}  axb6 {[%clk 0:00:16]} 33. Ke3 {[%clk 0:02:17]}  Ke5 {[%clk 0:00:14]} 34. Re4+ {[%clk 0:02:16]}  Kf5 {[%clk 0:00:14]} 35. Re7 {[%clk 0:02:16]}  d2 {[%clk 0:00:11]} 36. Kxd2 {[%clk 0:02:16]} 1-0


[Site "https://www.chess.com"]

[Event "Titled Tuesday Blitz July 11 Late 2023"]
[White "Sztokbant, Bernardo Vainzoff"]
[Black "Pinheiro, Iung Alicio de O."]
[WhiteFideId "2115956"]
[BlackFideId "2104350"]
[WhiteElo "2449"]
[BlackElo "2572"]
[Result "0-1"]
[Round "6"]
[TimeControl "180+2"]
[Date "2023.07.11"]
[WhiteClock "0:00:07"]
[BlackClock "0:00:47"]
[Board "69"]

1. e4 {[%clk 0:03:00]}  e6 {[%clk 0:02:59]} 2. d3 {[%clk 0:02:59]}  c5 {[%clk 0:02:58]} 3. Nf3 {[%clk 0:02:58]}  Nc6 {[%clk 0:02:59]} 4. g3 {[%clk 0:02:58]}  Nge7 {[%clk 0:02:59]} 5. Bg2 {[%clk 0:02:58]}  g6 {[%clk 0:02:59]} 6. O-O {[%clk 0:02:59]}  Bg7 {[%clk 0:03:00]} 7. Re1 {[%clk 0:02:56]}  d6 {[%clk 0:02:57]} 8. Nbd2 {[%clk 0:02:54]}  O-O {[%clk 0:02:57]} 9. Nf1 {[%clk 0:02:54]}  Rb8 {[%clk 0:02:49]} 10. h4 {[%clk 0:02:52]}  h6 {[%clk 0:02:45]} 11. N1h2 {[%clk 0:02:50]}  e5 {[%clk 0:02:44]} 12. Be3 {[%clk 0:02:26]}  f5 {[%clk 0:02:20]} 13. Qd2 {[%clk 0:02:20]}  Kh7 {[%clk 0:02:18]} 14. c3 {[%clk 0:02:18]}  Be6 {[%clk 0:02:09]} 15. h5 {[%clk 0:02:09]}  Qd7 {[%clk 0:02:02]} 16. hxg6+ {[%clk 0:02:08]}  Nxg6 {[%clk 0:02:02]} 17. exf5 {[%clk 0:02:02]}  Bxf5 {[%clk 0:02:02]} 18. d4 {[%clk 0:01:54]}  cxd4 {[%clk 0:01:58]} 19. cxd4 {[%clk 0:01:55]}  e4 {[%clk 0:01:59]} 20. Nh4 {[%clk 0:01:34]}  Nxh4 {[%clk 0:01:56]} 21. gxh4 {[%clk 0:01:35]}  d5 {[%clk 0:01:55]} 22. Nf1 {[%clk 0:01:31]}  Rg8 {[%clk 0:01:53]} 23. Ng3 {[%clk 0:01:30]}  Bh3 {[%clk 0:01:51]} 24. Bh1 {[%clk 0:01:06]}  Rbf8 {[%clk 0:01:50]} 25. Rac1 {[%clk 0:01:05]}  Bg4 {[%clk 0:01:42]} 26. Rc5 {[%clk 0:01:01]}  Bf3 {[%clk 0:01:40]} 27. Bg2 {[%clk 0:00:44]}  Bxg2 {[%clk 0:01:03]} 28. Kxg2 {[%clk 0:00:44]}  Rf3 {[%clk 0:01:02]} 29. Rec1 {[%clk 0:00:27]}  Bf8 {[%clk 0:01:02]} 30. R5c3 {[%clk 0:00:19]}  Bd6 {[%clk 0:00:53]} 31. Rh1 {[%clk 0:00:11]}  Bxg3 {[%clk 0:00:48]} 32. fxg3 {[%clk 0:00:07]}  Rgxg3+ {[%clk 0:00:47]} 0-1


[Site "https://www.chess.com"]

[Event "Titled Tuesday Blitz July 11 Late 2023"]
[White "Karttunen, Mika"]
[Black "Pinero Rodriguez, Carlos Jose"]
[WhiteFideId "502081"]
[BlackFideId "3901726"]
[WhiteElo "2564"]
[BlackElo "2419"]
[Result "0-1"]
[Round "6"]
[TimeControl "180+2"]
[Date "2023.07.11"]
[WhiteClock "0:00:00"]
[BlackClock "0:00:18"]
[Board "72"]

1. d4 {[%clk 0:03:00]}  Nf6 {[%clk 0:03:00]} 2. c4 {[%clk 0:03:00]}  e6 {[%clk 0:03:00]} 3. g3 {[%clk 0:02:59]}  Bb4+ {[%clk 0:02:57]} 4. Bd2 {[%clk 0:02:57]}  Qe7 {[%clk 0:02:58]} 5. Nf3 {[%clk 0:02:56]}  O-O {[%clk 0:02:57]} 6. Bg2 {[%clk 0:02:56]}  Bxd2+ {[%clk 0:02:57]} 7. Nbxd2 {[%clk 0:02:55]}  d6 {[%clk 0:02:58]} 8. O-O {[%clk 0:02:50]}  e5 {[%clk 0:02:58]} 9. e3 {[%clk 0:02:46]}  c6 {[%clk 0:02:58]} 10. Qb3 {[%clk 0:02:41]}  Nbd7 {[%clk 0:02:45]} 11. Qa3 {[%clk 0:02:38]}  Re8 {[%clk 0:02:41]} 12. Rac1 {[%clk 0:02:21]}  h6 {[%clk 0:02:41]} 13. dxe5 {[%clk 0:02:12]}  dxe5 {[%clk 0:02:40]} 14. c5 {[%clk 0:02:09]}  Nf8 {[%clk 0:02:20]} 15. Nc4 {[%clk 0:02:04]}  Ng6 {[%clk 0:02:20]} 16. Nd6 {[%clk 0:02:02]}  Rd8 {[%clk 0:02:20]} 17. Nd2 {[%clk 0:01:57]}  Be6 {[%clk 0:02:13]} 18. Rfd1 {[%clk 0:01:41]}  Ne8 {[%clk 0:02:09]} 19. N2e4 {[%clk 0:01:36]}  f5 {[%clk 0:01:40]} 20. Nxe8 {[%clk 0:01:32]}  Qxe8 {[%clk 0:01:40]} 21. Nd6 {[%clk 0:01:32]}  Qe7 {[%clk 0:01:34]} 22. f4 {[%clk 0:01:01]}  e4 {[%clk 0:01:30]} 23. Bh3 {[%clk 0:00:49]}  Rf8 {[%clk 0:01:30]} 24. Rd2 {[%clk 0:00:38]}  Nh8 {[%clk 0:01:28]} 25. Rcd1 {[%clk 0:00:32]}  g6 {[%clk 0:01:28]} 26. Bf1 {[%clk 0:00:22]}  Nf7 {[%clk 0:01:28]} 27. Nc4 {[%clk 0:00:22]}  a6 {[%clk 0:01:19]} 28. b4 {[%clk 0:00:19]}  Rad8 {[%clk 0:01:19]} 29. Qc3 {[%clk 0:00:17]}  Rxd2 {[%clk 0:01:16]} 30. Qxd2 {[%clk 0:00:17]}  Rd8 {[%clk 0:01:14]} 31. Nd6 {[%clk 0:00:17]}  Nxd6 {[%clk 0:01:12]} 32. cxd6 {[%clk 0:00:17]}  Qf6 {[%clk 0:01:12]} 33. a4 {[%clk 0:00:14]}  Bd5 {[%clk 0:01:07]} 34. b5 {[%clk 0:00:14]}  axb5 {[%clk 0:01:07]} 35. axb5 {[%clk 0:00:15]}  Rxd6 {[%clk 0:01:05]} 36. Qa5 {[%clk 0:00:15]}  Qd8 {[%clk 0:01:01]} 37. b6 {[%clk 0:00:15]}  Kg7 {[%clk 0:00:57]} 38. Qc3+ {[%clk 0:00:15]}  Qf6 {[%clk 0:00:57]} 39. Qa5 {[%clk 0:00:15]}  Rd7 {[%clk 0:00:54]} 40. Qc5 {[%clk 0:00:13]}  Qe7 {[%clk 0:00:52]} 41. Qd4+ {[%clk 0:00:13]}  Qf6 {[%clk 0:00:51]} 42. Qb4 {[%clk 0:00:13]}  g5 {[%clk 0:00:50]} 43. fxg5 {[%clk 0:00:13]}  hxg5 {[%clk 0:00:50]} 44. Rd2 {[%clk 0:00:12]}  Kg6 {[%clk 0:00:48]} 45. Rf2 {[%clk 0:00:12]}  Qe5 {[%clk 0:00:48]} 46. Bh3 {[%clk 0:00:11]}  g4 {[%clk 0:00:46]} 47. Bf1 {[%clk 0:00:10]}  Qd6 {[%clk 0:00:44]} 48. Qd4 {[%clk 0:00:10]}  Qf6 {[%clk 0:00:42]} 49. Qa4 {[%clk 0:00:10]}  Bf7 {[%clk 0:00:39]} 50. Qa8 {[%clk 0:00:09]}  Qd8 {[%clk 0:00:31]} 51. Qa7 {[%clk 0:00:08]}  c5 {[%clk 0:00:30]} 52. Qa5 {[%clk 0:00:07]}  Qe7 {[%clk 0:00:27]} 53. h3 {[%clk 0:00:06]}  gxh3 {[%clk 0:00:25]} 54. Bxh3 {[%clk 0:00:06]}  Be6 {[%clk 0:00:26]} 55. Qa8 {[%clk 0:00:03]}  Rd8 {[%clk 0:00:25]} 56. Qa1 {[%clk 0:00:03]}  Qg5 {[%clk 0:00:22]} 57. Qe5 {[%clk 0:00:02]}  Qf6 {[%clk 0:00:19]} 58. Qf4 {[%clk 0:00:00]}  Rh8 {[%clk 0:00:18]} 0-1


[Site "https://www.chess.com"]